[Event "93rd German Championship 2022"]
[Site "Magdeburg"]
[Date "2022.08.18"]
[Round "6.1"]
[White "Krastev, Alexander"]
[Black "Parvanyan, Ashot"]
[Result "0-1"]
[ECO "B00"]
[WhiteElo "2435"]
[BlackElo "2428"]
[Annotator "TA"]
[PlyCount "88"]
[EventDate "2022.08.14"]
[EventType "swiss"]
[EventCountry "GER"]
[SourceTitle "playchess.com"]
[Source "ChessBase"]
[SourceQuality "1"]
[TimeControl "40/5400+30:1800+30"]

{[%evp 9,88,32,42,25,37,20,29,-3,10,8,15,6,32,22,56,24,37,10,19,0,0,0,2,0,0,0,0,0,0,0,0,0,0,0,0,0,0,0,0,0,0,0,0,-72,0,0,0,-153,-168,-156,-121,-118,-118,-179,-183,-849,-367,-795,-780,-1672,-1020,-1004,-1000,-1000,-995,-918,-911,-870,-865,-736,-724,-29971,-29951,-1578,0,-29971,-29973,-29963,-5347,-6211,-5493]} 1. e4 {[%emt 0:05:05]} Nc6 {[%emt 0:00:08]} 2. Nc3 {[%emt 0:05:31]} Nf6 {[%emt 0:03:47]} 3. Nf3 {[%emt 0:04:48]} d6 {[%emt 0:01:36]} 4. h3 {[%emt 0:00:46]} g6 {[%emt 0:00:10]} 5. d4 {[%emt 0:01:23]} Bg7 {[%emt 0:00:33]} 6. Bg5 {[%emt 0:01:17] B00: Queen's Fianchetto Defence, Nimzowitsch Defence.} a6 {[%emt 0:15:17] [#]} 7. Qe2 $146 {[%emt 0:14:09]} ({Predecessor:} 7. a4 h6 8. Be3 e6 9. Be2 b6 10. O-O O-O 11. Qd2 Kh7 12. Rfe1 Ne7 13. Bd3 Bb7 {1-0 (31) Alikulov,E (2347)-Gasanov,E (2490) Moscow 2018}) 7... h6 {[%emt 0:15:17]} 8. Bxf6 {[%emt 0:02:58] White has an edge.} (8. Be3 $5 {[%cal Rd4d5]}) 8... Bxf6 {[%emt 0:05:56]} 9. e5 {[%emt 0:00:53]} Bg7 {[%emt 0:01:02]} 10. O-O-O {[%emt 0:00:35][%cal Oe5e6]} d5 {[%emt 0:06:03]} 11. Kb1 {[%emt 0:04:30]} Na5 {[%emt 0:05:40]} 12. g4 {[%emt 0:09:16]} e6 {[%emt 0:04:50]} 13. Nd2 {[%emt 0:02:58]} Bd7 {[%emt 0:15:12][%cal Oc7c5]} 14. Qe3 {[%emt 0:17:54]} c5 {[%emt 0:03:26]} 15. dxc5 {[%emt 0:01:59]} Qc7 {[%emt 0:00:05]} 16. f4 {[%emt 0:04:31]} Bf8 {[%emt 0:10:06]} 17. b4 {[%emt 0:10:28] Bg2 is the strong threat.} Nc6 {[%emt 0:00:06]} 18. a3 {[%emt 0:00:03]} d4 {[%emt 0:04:17]} 19. Qd3 {[%emt 0:00:03] aiming for Nce4.} dxc3 {[%emt 0:00:09]} 20. Nc4 {[%emt 0:00:17][%cal Od3d7]} Be7 {[%emt 0:04:21]} 21. h4 {[%emt 0:00:50]} Na7 {[%emt 0:02:25]} 22. h5 {[%emt 0:06:49]} gxh5 {[%emt 0:00:27]} 23. Rxh5 {[%emt 0:00:14]} Bb5 {[%emt 0:00:33]} 24. Qxc3 {[%emt 0:00:23] And now Nd6+ would win.} Bxc4 {[%emt 0:00:10]} 25. Bxc4 {[%emt 0:00:06]} Rd8 {[%emt 0:00:51]} 26. Rdh1 {[%emt 0:00:52] [#]} (26. Rd6 $11) 26... Nb5 {[%emt 0:00:32]} (26... Qc6 $1 $17) 27. Bxb5+ $11 {[%emt 0:03:24]} axb5 {[%emt 0:00:02]} 28. Rxh6 $2 {[%emt 0:00:41]} (28. g5 $11) 28... Rxh6 $17 {[%emt 0:00:04]} 29. Rxh6 {[%emt 0:00:05]} Qc6 {[%emt 0:00:17]} 30. Rh8+ {[%emt 0:00:59]} Bf8 {[%emt 0:01:35]} 31. Qe3 {[%emt 0:01:15]} (31. Rh3 $17) 31... Qg2 {[%emt 0:00:26]} 32. g5 $2 {[%emt 0:00:41]} (32. c6 Qxc6 33. f5 Rd1+ 34. Kb2) 32... Qf1+ {[%emt 0:00:30]} (32... Rd1+ $142 33. Kb2 Qf1) 33. Kb2 $2 {[%emt 0:00:13]} (33. Ka2 Rd1 34. Qc3 Qxf4 35. a4) 33... Rd1 $19 {[%emt 0:00:29]} 34. Qe4 {[%emt 0:00:57]} Rb1+ {[%emt 0:00:32]} 35. Kc3 {[%emt 0:00:01]} Ra1 {[%emt 0:00:26] Strongly threatening ...Qc1.} ({Avoid the trap} 35... Qc1 $2 36. g6 Qxa3+ 37. Kd2 $19) 36. g6 {[%emt 0:00:43]} Rxa3+ 37. Kd2 Qf2+ {[%emt 0:01:06]} 38. Kc1 {[%emt 0:00:05]} Qg1+ {[%emt 0:00:18]} 39. Kd2 {[%emt 0:00:16]} fxg6 {[%emt 0:00:37] White must now prevent ...Ra1.} 40. Rh7 {[%emt 0:00:58]} Qf2+ {[%emt 0:00:23]} 41. Kc1 {[%emt 0:30:23]} Qg1+ {[%emt 0:10:47] [#]} (41... Ra1+ $19 42. Kb2 Qg1) 42. Kd2 {[%emt 0:00:00]} Ra1 {[%emt 0:00:09]} 43. Kc3 {[%emt 0:00:00]} Re1 {[%emt 0:01:07]} (43... Qg3+ $142 44. Kd2 Qg1 45. Kc3 Re1 46. Rh1 Qxh1 47. Qxg6+ Kd7 48. Qd3+ Ke7 49. c6 Qxc6+ 50. Kb2 Qe4 51. Ka2 Re3 52. Qxe4 Rxe4 53. c3 Rxf4 54. Kb3 Rf2 55. c4 Rf3+ 56. Kc2 bxc4 57. b5 Bh6 58. Kb2 b6 59. Kb1 Rf2 60. Ka1 c3 61. Kb1 c2+ 62. Kb2 c1=Q+ 63. Kb3 Rb2+ 64. Ka4 Qa1#) 44. Qd4 {[%emt 0:00:00]} Re3+ {[%emt 0:00:05] Weighted Error Value: White=0.89/Black=0.57} 0-1

[Event "93rd German Championship 2022"]
[Site "Magdeburg"]
[Date "2022.08.18"]
[Round "6.2"]
[White "Krassowizkij, Jaroslaw"]
[Black "Vogel, Roven"]
[Result "1/2-1/2"]
[ECO "B52"]
[WhiteElo "2428"]
[BlackElo "2465"]
[Annotator "TA"]
[PlyCount "114"]
[EventDate "2022.08.14"]
[EventType "swiss"]
[EventCountry "GER"]
[SourceTitle "playchess.com"]
[Source "ChessBase"]
[SourceQuality "1"]
[TimeControl "40/5400+30:1800+30"]

{[%evp 16,113,16,15,28,17,12,20,28,20,26,16,20,0,0,18,7,0,0,0,0,0,0,0,0,0,0,0,0,0,0,0,0,0,0,0,0,0,-4,-37,-27,-26,-34,-53,-39,-39,-53,-53,-54,-86,-77,-60,-44,-129,-131,-80,-69,-78,-8,-8,-8,-8,-8,-8,-8,-8,-8,-8,-10,-4570,-8,-119,-27,-1662,-824,-29961,-29962,-29956,-29955,-29944,-29940,-10825,-6128,-6082,0,-1029,0,0,0,0,0,0,0,0,0,0,0,0,0,0]} 1. e4 {[%emt 0:00:03]} c5 {[%emt 0:00:41]} 2. Nf3 {[%emt 0:00:05]} d6 {[%emt 0:00:13]} 3. Bb5+ {[%emt 0:00:04]} Bd7 {[%emt 0:00:12]} 4. Bxd7+ {[%emt 0:00:05]} Nxd7 {[%emt 0:00:11]} 5. O-O {[%emt 0:00:08]} Ngf6 {[%emt 0:00:29]} 6. Qe2 {[%emt 0:00:05]} e6 {[%emt 0:00:52]} 7. d4 {[%emt 0:00:27]} cxd4 {[%emt 0:01:57]} 8. Nxd4 {[%emt 0:00:09]} Be7 {[%emt 0:03:29]} 9. c4 {[%emt 0:00:14]} a6 {[%emt 0:02:55] B52: Sicilian: Moscow Variation with 3...Bd7.} 10. Nc3 {[%emt 0:00:43]} Qa5 {[%emt 0:01:52]} 11. Bd2 {[%emt 0:13:58][%cal Oc3d5] [#]} Rc8 $146 {[%emt 0:04:43]} ({Predecessor:} 11... Ne5 12. b3 Qc5 13. Nf3 Rc8 14. Rac1 O-O 15. Rfd1 Ng6 16. g3 h6 17. Kg2 Rfd8 {½-½ (36) Caron,S (2433)-Ristea,T (2404) ICCF email 2018}) 12. b3 {[%emt 0:03:50][%cal Oc3d5]} Qh5 {[%emt 0:03:17]} 13. Qxh5 {[%emt 0:19:40]} Nxh5 {[%emt 0:00:04]} 14. g4 {[%emt 0:01:10]} Nhf6 {[%emt 0:00:29]} 15. g5 {[%emt 0:00:41]} Nh5 {[%emt 0:09:52]} 16. f4 {[%emt 0:00:53]} h6 {[%emt 0:02:48]} 17. g6 {[%emt 0:04:49]} Bf6 {[%emt 0:02:21]} 18. gxf7+ {[%emt 0:05:28]} (18. e5 {looks sharper.} dxe5 19. gxf7+ Kxf7 20. fxe5 Nxe5 21. Rae1) 18... Kxf7 {[%emt 0:00:28]} 19. Nf3 {[%emt 0:05:35]} Ke7 {[%emt 0:07:58][%cal Oh5f4]} 20. Rad1 {[%emt 0:12:31]} Bxc3 {[%emt 0:12:35]} 21. Bxc3 {[%emt 0:00:04] And now Nh4 would win.} Nxf4 {[%emt 0:00:08] ...Ne2+ is the strong threat.} 22. Bb4 {[%emt 0:00:05]} Nc5 {[%emt 0:00:31]} 23. e5 {[%emt 0:00:21]} Rhd8 {[%emt 0:00:52]} 24. exd6+ {[%emt 0:07:20]} Rxd6 {[%emt 0:00:08]} 25. Rxd6 {[%emt 0:00:08]} Kxd6 {[%emt 0:00:29]} 26. Rd1+ {[%emt 0:01:10]} Ke7 {[%emt 0:01:49]} 27. Ne5 {[%emt 0:01:14] Threatens to win with Nd7.} Kf6 {[%emt 0:05:07]} 28. Bxc5 {[%emt 0:02:25] aiming for Bd6.} Kxe5 $11 {[%emt 0:00:19][%mdl 4096] Endgame KRB-KRN} 29. Bd6+ {[%emt 0:00:05]} ({Much worse is} 29. Bd4+ Ke4 30. Bb6 Nd3 $17) 29... Kf5 {[%emt 0:00:40]} 30. Bxf4 {[%emt 0:00:05]} Kxf4 $15 {[%emt 0:00:05] KR-KR} 31. Rd7 {[%emt 0:14:04]} b5 $1 {[%emt 0:01:02]} 32. cxb5 {[%emt 0:01:29]} Rc1+ {[%emt 0:00:22]} 33. Kg2 {[%emt 0:00:05]} Rc2+ {[%emt 0:00:20]} 34. Kg1 {[%emt 0:03:07]} (34. Kh3 $15 axb5 35. Rxg7) 34... axb5 $17 {[%emt 0:00:30]} 35. a4 {[%emt 0:00:24]} ({White should play} 35. Rxg7 Rxa2 36. Rf7+ Kg4 37. Rg7+ Kf3 38. Rf7+ Kg4 39. Rg7+ Kf3 40. Rf7+ Kg4) 35... bxa4 {[%emt 0:03:25]} 36. bxa4 {[%emt 0:00:04]} e5 {[%emt 0:00:34]} (36... g6 $17 37. Rf7+ Ke5) 37. Rf7+ $11 {[%emt 0:03:37]} Ke3 {[%emt 0:00:12] White should prevent ...g5.} 38. Rxg7 {[%emt 0:00:33]} e4 {[%emt 0:00:08]} 39. a5 {[%emt 0:01:46]} Ra2 {[%emt 0:00:47]} 40. Ra7 {[%emt 0:00:54]} Ke2 {[%emt 0:07:31]} 41. a6 {[%emt 0:05:13]} e3 {[%emt 0:01:53]} 42. Ra8 $2 {[%emt 0:02:53][%mdl 8192]} (42. h3 $11) 42... Ra5 $2 {[%emt 0:02:10]} (42... Ke1 $1 $19 43. a7 e2) 43. Kg2 {[%emt 0:06:56] [#]} (43. a7 $11) 43... Ke1 {[%emt 0:22:35]} (43... Rg5+ $1 $17 44. Kh3 Rg7) 44. a7 $2 {[%emt 0:09:55][%mdl 8192]} (44. Re8 $11) 44... e2 $19 {[%emt 0:05:52] Hoping for ...Rg5+.} 45. h4 {[%emt 0:02:29] [#] Against Rg5+} h5 $1 {[%emt 0:00:47]} 46. Kh2 {[%emt 0:04:06]} Ra4 {[%emt 0:02:36]} 47. Kh3 {[%emt 0:01:08]} Ra6 {[%emt 0:13:08]} 48. Kh2 {[%emt 0:00:09]} Ra3 {[%emt 0:00:47]} 49. Kg2 {[%emt 0:00:44]} Ra4 {[%emt 0:00:09]} (49... Ra2 $142 50. Kh2 Ra6) 50. Kh3 $1 {[%emt 0:00:20]} Kf1 {[%emt 0:00:49]} ({Black should try} 50... Ra2 $19 51. Kg2 Ra3) 51. Rf8+ $11 {[%emt 0:00:07] The position is equal.} Kg1 {[%emt 0:00:08] ( -> ...Ra3+)} 52. a8=Q {[%emt 0:00:11]} Rxa8 {[%emt 0:00:11]} 53. Rxa8 {[%emt 0:00:04]} e1=Q {[%emt 0:00:10][%cal Re1c3]} 54. Rg8+ {[%emt 0:00:05]} Kf2 {[%emt 0:00:07]} 55. Rf8+ {[%emt 0:00:06]} Kg1 {[%emt 0:00:05]} 56. Rg8+ {[%emt 0:00:03]} Kh1 {[%emt 0:00:06]} 57. Rg1+ $1 {[%emt 0:00:03]} Kxg1 {[%emt 0:00:12] Black had all chances to win.  Weighted Error Value: White=0.40/Black=0.53} 1/2-1/2

[Event "93rd German Championship 2022"]
[Site "Magdeburg"]
[Date "2022.08.18"]
[Round "6.3"]
[White "Poetsch, Hagen"]
[Black "Dahl, Christoph"]
[Result "1-0"]
[ECO "B90"]
[WhiteElo "2500"]
[BlackElo "2355"]
[Annotator "TA"]
[PlyCount "85"]
[EventDate "2022.08.14"]
[EventType "swiss"]
[EventCountry "GER"]
[SourceTitle "playchess.com"]
[Source "ChessBase"]
[SourceQuality "1"]
[TimeControl "40/5400+30:1800+30"]

{[%evp 15,85,29,26,13,51,64,104,95,108,102,97,36,87,59,80,59,87,86,97,86,88,67,64,53,163,145,264,264,272,263,256,245,272,283,261,213,291,217,214,144,140,119,126,106,95,79,84,81,132,131,220,219,219,219,242,154,182,140,168,161,245,219,222,239,472,445,904,936,851,832,712,569]} 1. e4 {[%emt 0:02:15]} c5 {[%emt 0:01:01]} 2. Nf3 {[%emt 0:00:09]} d6 {[%emt 0:00:46]} 3. d4 {[%emt 0:00:06]} cxd4 {[%emt 0:00:54]} 4. Nxd4 {[%emt 0:00:07]} Nf6 {[%emt 0:00:46]} 5. Nc3 {[%emt 0:00:06]} a6 {[%emt 0:00:54]} 6. Be3 {[%emt 0:00:06]} e6 {[%emt 0:00:37]} 7. Be2 {[%emt 0:00:06]} Qc7 {[%emt 0:00:54]} 8. Qd2 {[%emt 0:00:06]} b5 {[%emt 0:01:08]} 9. f3 {[%emt 0:00:26][%cal Bf2f3,Bf3f4][%mdl 32] B84: Sicilian Scheveningen: 6 Be2 a6, lines without early Be3.} b4 {[%emt 0:01:56]} 10. Na4 {[%emt 0:01:23]} d5 {[%emt 0:00:29]} 11. e5 {[%emt 0:06:40] White is better.} Nfd7 {[%emt 0:00:23]} 12. f4 {[%emt 0:01:06]} Nc6 {[%emt 0:01:47]} 13. O-O {[%emt 0:09:53] [#]} (13. Rc1 $16) 13... Bb7 $146 {[%emt 0:09:25]} ({Better is} 13... Nc5 $14 14. Nxc5 Bxc5) ({Predecessor:} 13... Nxd4 14. Bxd4 g6 15. Rac1 Qa5 16. b3 Nc5 17. Nxc5 Bxc5 18. c3 bxc3 19. Rxc3 Bb4 {1-0 (35) Gundavaa,B (2461)-Erkhembayar,D (2343) Ulaanbaatar 2009}) 14. Nb3 {[%emt 0:26:33]} Be7 {[%emt 0:05:38]} 15. c4 {[%emt 0:01:05]} bxc3 {[%emt 0:20:27]} 16. Qxc3 {[%emt 0:01:12]} O-O {[%emt 0:01:40]} 17. Rac1 {[%emt 0:01:22]} Rfc8 {[%emt 0:02:36]} 18. Qe1 {[%emt 0:07:56]} Qd8 {[%emt 0:04:33]} 19. Qf2 {[%emt 0:09:00] White is much more active.} Na5 {[%emt 0:16:48]} (19... Bf8 $14) 20. Rxc8 $1 $18 {[%emt 0:02:25]} Rxc8 {[%emt 0:00:07]} (20... Bxc8 $16 {is a better defense.} 21. Nb6 Nxb3 22. Nxa8 Nbc5) 21. Nb6 $1 {[%emt 0:01:37]} Nxb3 {[%emt 0:06:41]} 22. Nxc8 {[%emt 0:00:19]} Qxc8 {[%emt 0:00:48]} 23. axb3 {[%emt 0:00:07]} Bc6 {[%emt 0:04:53]} 24. Ra1 {[%emt 0:05:12]} Nb8 {[%emt 0:01:28]} 25. Bd3 {[%emt 0:04:56] Black must now prevent Qc2.} Qb7 {[%emt 0:01:06]} 26. Qc2 {[%emt 0:02:01]} g6 {[%emt 0:00:47]} 27. Bc5 {[%emt 0:03:22]} Bxc5+ {[%emt 0:00:44]} 28. Qxc5 {[%emt 0:00:05]} Qxb3 {[%emt 0:01:02]} 29. Bc2 {[%emt 0:07:42]} Qb7 {[%emt 0:00:50]} 30. Qd4 {[%emt 0:02:30]} Bb5 {[%emt 0:01:46]} 31. Ra3 {[%emt 0:01:07]} Bc4 {[%emt 0:01:02]} ({Black should try} 31... Qc7 32. Qf2 d4) 32. Ba4 $16 {[%emt 0:01:27]} Nc6 {[%emt 0:00:50]} (32... Bb5 $16 33. Rb3 (33. Bxb5 Qxb5 34. b4 Nd7 $16) 33... Nc6) 33. Bxc6 $18 {[%emt 0:00:13]} Qxc6 {[%emt 0:00:04][%mdl 4096] Endgame [#] KQR-KQB} 34. h3 $1 {[%emt 0:01:07]} Qb5 {[%emt 0:00:53]} 35. Kh2 {[%emt 0:00:56]} h5 {[%emt 0:01:12]} 36. g4 {[%emt 0:02:29]} hxg4 {[%emt 0:01:29]} 37. hxg4 {[%emt 0:00:05][%cal Of4f5]} Qb4 {[%emt 0:01:29]} (37... a5 {was necessary.} 38. f5 exf5) 38. Re3 {[%emt 0:00:35][%cal Ob2b3]} Qa4 {[%emt 0:03:14] Inhibits b3.} 39. Rc3 {[%emt 0:00:38][%cal Of4f5] Inhibits Qc2+. And now f5! would win.} a5 $2 {[%emt 0:05:00] [#]} (39... Qa2 {might work better.} 40. Qb6 Qb1) 40. f5 $1 {[%emt 0:01:03] Hoping for fxg6. White is clearly winning.} Qa1 {[%emt 0:01:31]} (40... Qb4 $142 41. fxe6 fxe6) 41. b3 {[%emt 0:12:30]} Qa2+ {[%emt 0:04:02]} 42. Kg3 {[%emt 0:00:17]} ({But not} 42. Kh3 $2 Bf1+ 43. Kg3 (43. Kh4 {leads to mate.} Qh2+) 43... Qg2+ 44. Kf4 Qh2+ 45. Rg3 (45. Kg5 {is a self mate.} Kg7 46. f6+ Kh7) 45... g5+ 46. Kxg5 Qxg3 $19) 42... Bf1 {[%emt 0:01:53]} 43. Qf2 {[%emt 0:02:35] Weighted Error Value: White=0.15 (very precise) /Black=0.34} 1-0

[Event "93rd German Championship 2022"]
[Site "Magdeburg"]
[Date "2022.08.18"]
[Round "6.4"]
[White "Costa, Leonardo"]
[Black "Wachinger, Nikolas"]
[Result "1/2-1/2"]
[ECO "C02"]
[WhiteElo "2316"]
[BlackElo "2437"]
[Annotator "TA"]
[PlyCount "82"]
[EventDate "2022.08.14"]
[EventType "swiss"]
[EventCountry "GER"]
[SourceTitle "playchess.com"]
[Source "ChessBase"]
[SourceQuality "1"]
[TimeControl "40/5400+30:1800+30"]

{[%evp 11,82,0,18,13,30,0,0,7,11,12,9,7,9,0,12,14,-20,5,0,-210,-206,-211,-216,-212,-197,-219,-191,-216,-220,-244,-185,-204,-176,-168,-157,-195,-134,-131,-135,-142,-86,-123,-107,-101,-101,-100,-84,-112,-97,-97,-51,-80,-31,-30,0,0,0,0,0,0,0,0,0,0,0,0,0,0,0,0,0,0,0]} 1. e4 {[%emt 0:00:01]} e6 {[%emt 0:04:45]} 2. d4 {[%emt 0:00:03]} d5 {[%emt 0:00:11]} 3. e5 {[%emt 0:00:06]} c5 {[%emt 0:00:09]} 4. c3 {[%emt 0:00:05]} Nc6 {[%emt 0:00:07]} 5. Nf3 {[%emt 0:00:05]} Qb6 {[%emt 0:00:10]} 6. a3 {[%emt 0:00:06]} Nh6 {[%emt 0:00:11]} 7. b4 {[%emt 0:00:07] 7.Bd3 gains popularity. C02: French: Advance Variation.} cxd4 {[%emt 0:00:29]} 8. b5 {[%emt 0:00:02]} Na5 {[%emt 0:00:35]} 9. Bxh6 {[%emt 0:00:04]} gxh6 {[%emt 0:00:22]} 10. cxd4 {[%emt 0:00:04]} Bd7 {[%emt 0:00:59]} 11. Nbd2 {[%emt 0:00:05]} Rg8 {[%emt 0:00:23]} (11... Bxb5 $2 12. Rb1 $18) 12. g3 {[%emt 0:16:56]} Rg4 {[%emt 0:01:36]} (12... Bxb5 $2 13. Rb1 $18) 13. Bh3 {[%emt 0:07:44]} Rxd4 {[%emt 0:00:24]} 14. Nxd4 {[%emt 0:00:35]} Qxd4 {[%emt 0:00:04] [#]} 15. Nf3 $146 {[%emt 0:14:33] [#]} (15. O-O $11) ({Predecessor:} 15. O-O Bxb5 16. Qh5 Bd7 17. Nf3 Qc5 18. Rfd1 Nc6 19. Rab1 Rb8 20. Rdc1 Qe7 21. a4 {½-½ (33) Yu,Y (2738)-Xu,Y (2548) Daqing 2019}) 15... Qe4+ $19 {[%emt 0:23:56]} 16. Qe2 {[%emt 0:01:56]} Qxe2+ {[%emt 0:08:02]} 17. Kxe2 {[%emt 0:00:03]} Bxb5+ {[%emt 0:00:18]} 18. Ke1 {[%emt 0:06:02]} Nc4 {[%emt 0:17:01]} 19. Bf1 {[%emt 0:09:49]} Bxa3 {[%emt 0:05:08]} 20. Rb1 {[%emt 0:00:37]} Ba6 {[%emt 0:05:55]} 21. Bd3 {[%emt 0:04:58]} Bb2 {[%emt 0:04:43]} 22. Ke2 {[%emt 0:12:03]} b5 {[%emt 0:09:28]} ({Stronger than} 22... Bxe5 23. Nxe5 Nxe5 24. Bxa6 bxa6 25. Ra1 $11) 23. Bxh7 {[%emt 0:07:06] [#]} b4 {[%emt 0:07:22]} ({Weaker is} 23... Bxe5 24. Nxe5 Nxe5 25. Rhc1 $17) (23... Rb8 $1 $19 24. Bd3 Rb6) 24. Bd3 $17 {[%emt 0:00:06] Black must now prevent Rxb2.} Bc3 {[%emt 0:00:27]} 25. Rhc1 {[%emt 0:00:34]} Bc8 {[%emt 0:02:23] A strong pair of Bishops.} (25... Kd7 $142 {And now ...Kc6 would win.} 26. Rxc3 bxc3) 26. Rb3 {[%emt 0:07:58]} a5 {[%emt 0:02:11]} 27. Bxc4 {[%emt 0:00:22]} dxc4 {[%emt 0:00:06]} 28. Rbxc3 {[%emt 0:00:03]} bxc3 {[%emt 0:00:11]} 29. Rxc3 {[%emt 0:00:03][%mdl 4096] Endgame KRB-KRN} a4 {[%emt 0:01:50] aiming for ...a3.} 30. Ra3 {[%emt 0:00:03]} Bd7 {[%emt 0:01:46]} (30... Ra5 $17 31. Kd2 Bd7) 31. Nd2 {[%emt 0:01:16]} Ke7 {[%emt 0:02:08]} (31... Bc6 $17) 32. Ke3 $15 {[%emt 0:02:47]} Ra5 {[%emt 0:01:45]} (32... Bb5 $5 {[%cal Ra8d8]}) 33. Nxc4 {[%emt 0:01:16] The position is equal.} (33. f4 {keeps more tension.} c3 34. Ne4 c2 35. Kd2) 33... Rc5 {[%emt 0:00:04]} 34. Kd4 {[%emt 0:01:28]} Rd5+ {[%emt 0:00:04]} 35. Kc3 {[%emt 0:01:16]} Bb5 {[%emt 0:00:43]} 36. f4 {[%emt 0:01:06]} Bxc4 {[%emt 0:01:48]} 37. Kxc4 {[%emt 0:00:04]} Rd2 {[%emt 0:00:21]} 38. Rxa4 {[%emt 0:02:04]} Rxh2 {[%emt 0:00:08]} 39. Ra7+ {[%emt 0:00:04]} Kf8 {[%emt 0:00:07]} 40. Kd4 {[%emt 0:00:10]} Rg2 {[%emt 0:00:19]} 41. Ra3 {[%emt 0:30:34]} Kg7 {[%emt 0:30:11] Black had all chances to win.  Weighted Error Value: White=0.19 (very precise) /Black=0.13 (very precise)} 1/2-1/2